bitfinex-derivatives/quotes_BTCF0:USTF0_20250324
["timestamp","ask_amount","ask_price","bid_price","bid_amount"]
[1742827705479,0.00894855,88286.0,88282.0,0.4299]
[1742827705975,0.00953463,88285.0,88282.0,0.4299]
[1742827706181,0.00894855,88284.0,88283.0,0.1132578]
[1742827706373,0.00894855,88284.0,88283.0,0.4412]
[1742827706573,0.00894855,88284.0,88283.0,0.44296]
[1742827706775,0.20863463,88284.0,88283.0,0.25056]
[1742827706968,0.20863463,88284.0,88283.0,0.04176]
[1742827706969,0.41263463,88284.0,88283.0,0.04176]
[1742827707170,0.42169033,88284.0,88283.0,0.04176]
[1742827707572,0.01859033,88284.0,88283.0,0.1550184]
[1742827707872,0.0090557,88284.0,88283.0,0.1550184]
[1742827708779,0.00955197,88289.0,88288.0,0.113252]
[1742827708973,0.00955197,88289.0,88288.0,0.16392]
[1742827710083,0.02482533,88289.0,88288.0,0.16392]
[1742827710386,0.3608,88333.0,88295.0,0.056621]
[1742827710682,0.1982,88323.0,88317.0,0.1132145]
[1742827710875,0.1982,88323.0,88318.0,0.51776]
[1742827711076,0.1998,88322.0,88318.0,0.56952]
[1742827711273,0.16017035,88322.0,88318.0,0.56952]
[1742827711473,0.1982,88321.0,88318.0,0.56952]
[1742827712575,0.1982,88321.0,88318.0,0.5899294]
[1742827712769,0.1982,88321.0,88319.0,0.12216]
[1742827712975,0.2012,88321.0,88319.0,0.17250904]
[1742827713177,0.2012,88321.0,88320.0,0.4003]
[1742827713478,0.2052,88321.0,88320.0,0.44218]
[1742827715180,0.2022,88321.0,88320.0,0.44218]
[1742827715380,0.2062,88321.0,88320.0,0.677511]
[1742827715970,0.2062,88321.0,88320.0,0.5643]
[1742827716585,0.2022,88321.0,88320.0,0.5643]
[1742827717975,0.2002,88321.0,88320.0,0.5643]
[1742827718377,0.42663369,88321.0,88320.0,0.16396]
[1742827718578,0.31342399,88321.0,88320.0,0.16208]
[1742827718792,0.2002,88321.0,88320.0,0.35538]
[1742827718982,0.2002,88321.0,88320.0,0.35714]
[1742827719892,0.42663369,88321.0,88320.0,0.16384]
[1742827720085,0.31342399,88321.0,88320.0,0.16208]
[1742827720589,0.42663369,88321.0,88320.0,0.16208]
[1742827720891,0.61973369,88321.0,88320.0,0.16208]
[1742827721084,0.50652399,88321.0,88320.0,0.16208]
[1742827721886,0.61973369,88321.0,88320.0,0.04]
[1742827722283,0.0566102,88313.0,88282.0,0.521783]
[1742827722492,0.4740405,88297.0,88296.0,0.22426155]
[1742827722680,0.4740405,88297.0,88296.0,0.23280887]
[1742827722885,0.49454246,88297.0,88296.0,0.23280887]
[1742827723084,0.61667497,88297.0,88296.0,0.23280887]
[1742827723283,0.1132456,88293.0,88282.0,0.399703]
[1742827723482,0.11448561,88293.0,88292.0,0.00976609]
[1742827723683,0.11448561,88293.0,88292.0,0.00852609]
[1742827723891,0.1132469,88292.0,88291.0,0.26885207]
[1742827724189,0.67958691,88292.0,88291.0,0.27009207]
[1742827724688,0.79284809,88292.0,88291.0,0.27009207]
[1742827724886,0.113252,88288.0,88287.0,0.00045307]
[1742827725088,0.114092,88288.0,88287.0,0.01129307]
[1742827725482,0.22735831,88288.0,88287.0,0.01129307]
[1742827725687,0.24765532,88288.0,88287.0,0.01129307]
[1742827726085,0.25655425,88288.0,88287.0,0.01129307]
[1742827726584,0.66485425,88288.0,88287.0,0.01129307]
[1742827726794,0.66485425,88288.0,88287.0,0.01045307]
[1742827727187,0.1132636,88279.0,88278.0,0.399703]
[1742827727391,0.4747436,88279.0,88278.0,0.410543]
[1742827727797,0.59690884,88279.0,88278.0,0.410543]
[1742827727980,0.79140884,88279.0,88278.0,0.01084]
[1742827728294,0.79140884,88279.0,88278.0,0.01]
[1742827728489,0.79140884,88279.0,88278.0,0.01288]
[1742827728679,0.67814524,88279.0,88278.0,0.01372]
[1742827728885,0.67814524,88279.0,88278.0,0.01284]
[1742827729090,0.67814524,88279.0,88278.0,0.2222]
[1742827729287,0.48364524,88279.0,88278.0,0.22304]
[1742827729489,0.37037893,88279.0,88278.0,0.7170849]
[1742827729682,0.3608,88292.0,88291.0,0.1132482]
[1742827729990,0.09817,88304.0,88303.0,0.1132328]
[1742827730286,0.09885,88304.0,88303.0,0.2463528]
[1742827730493,0.09885,88304.0,88303.0,0.13312]
[1742827730690,0.09885,88304.0,88303.0,0.14312]
[1742827730891,0.09885,88304.0,88303.0,0.56422]
[1742827731394,0.32532729,88304.0,88303.0,0.35332]
[1742827731586,0.32532729,88304.0,88303.0,0.25172424]
[1742827731788,0.32632729,88304.0,88303.0,0.23124]
[1742827732385,0.22815729,88304.0,88303.0,0.23124]
[1742827733983,0.11492579,88304.0,88303.0,0.23124]
[1742827734188,0.22815729,88304.0,88303.0,0.23124]
[1742827737996,0.22815729,88304.0,88303.0,0.22124]
[1742827740495,0.11492579,88304.0,88303.0,0.22124]
[1742827740701,0.00168,88304.0,88303.0,0.22124]
[1742827740892,0.00168,88304.0,88303.0,0.23124]
[1742827741291,0.00168,88304.0,88303.0,0.43884]
[1742827741900,0.22815729,88304.0,88303.0,0.43884]
[1742827742803,0.42095729,88304.0,88303.0,0.42884]
[1742827744896,0.61055729,88304.0,88303.0,0.42884]
[1742827745799,0.61055729,88304.0,88303.0,0.43884]
[1742827746497,0.61055729,88304.0,88303.0,0.23124]
[1742827748110,0.49732579,88304.0,88303.0,0.23124]
[1742827748300,0.30772579,88304.0,88303.0,0.23124]
[1742827748503,0.42095729,88304.0,88303.0,0.23124]
[1742827748903,0.62555729,88304.0,88303.0,0.23124]
[1742827750309,0.42095729,88304.0,88303.0,0.23124]
[1742827750819,0.42095729,88304.0,88303.0,0.22124]
[1742827751015,0.61905729,88304.0,88303.0,0.22124]
[1742827752004,0.61905729,88304.0,88303.0,0.23124]
[1742827755007,0.61905729,88304.0,88289.0,0.01]
[1742827755008,0.1132418,88296.0,88289.0,0.01]
[1742827755212,0.8348495,88290.0,88289.0,0.04]
[1742827755714,0.1132649,88278.0,88277.0,0.1305243]
[1742827755911,0.4740649,88278.0,88277.0,0.17805558]
[1742827756208,0.8571649,88278.0,88277.0,0.17805558]
[1742827756416,0.67424269,88278.0,88277.0,0.17805558]
[1742827756604,0.67424269,88278.0,88277.0,0.29132168]
[1742827756605,0.36977779,88278.0,88277.0,0.29132168]
[1742827756819,0.00897779,88278.0,88277.0,0.29978126]
[1742827757006,0.3608,88306.0,88277.0,0.99911516]
[1742827757206,0.0566151,88305.0,88298.0,0.1132383]
[1742827757407,0.1132329,88303.0,88299.0,0.32376]
[1742827757607,0.1132329,88303.0,88299.0,0.36376]
[1742827757608,0.1132366,88300.0,88299.0,0.36376]
[1742827758015,0.5066366,88300.0,88299.0,0.36376]
[1742827759919,0.5066366,88300.0,88299.0,0.25784251]
[1742827760722,0.5066366,88300.0,88299.0,0.25884251]
[1742827760919,0.8674366,88300.0,88299.0,0.25964251]
[1742827761120,0.8682366,88300.0,88299.0,0.25964251]
[1742827761312,0.8682366,88300.0,88299.0,0.25864251]
[1742827761514,0.8682366,88300.0,88299.0,0.25964251]
[1742827763215,0.6660366,88300.0,88299.0,0.25964251]
[1742827763413,0.3616,88300.0,88299.0,0.25964251]
[1742827763815,0.4748366,88300.0,88299.0,0.25964251]
[1742827764521,0.8648366,88300.0,88299.0,0.25964251]
[1742827766712,0.97808752,88300.0,88299.0,0.0418]
[1742827766911,0.97808752,88300.0,88299.0,0.031]
[1742827767414,0.1132456,88293.0,88291.0,0.00016989]
[1742827767612,0.8717469,88292.0,88291.0,0.02016989]
[1742827767817,0.1132559,88285.0,88284.0,0.0159776]
[1742827768013,0.1138959,88285.0,88284.0,0.03]
[1742827768217,0.5115959,88285.0,88284.0,0.03064]
[1742827768423,0.5115959,88285.0,88284.0,0.03]
[1742827768613,0.00064,88285.0,88284.0,0.34158277]
[1742827768812,0.08567945,88300.0,88299.0,0.1132379]
[1742827769016,0.08639945,88300.0,88299.0,0.2458779]
[1742827769319,0.0947108,88300.0,88299.0,0.6379779]
[1742827770231,0.08567945,88300.0,88299.0,0.6379779]
[1742827771018,0.00016989,88308.0,88299.0,0.52474]
[1742827771219,0.19914989,88308.0,88301.0,0.1132342]
[1742827771420,0.38854989,88308.0,88302.0,0.1132336]
[1742827771725,0.00892696,88307.0,88302.0,0.1639533]
[1742827771931,0.00968696,88307.0,88303.0,0.1132323]
[1742827772134,0.20798696,88307.0,88303.0,0.5491123]
[1742827772429,0.19906,88307.0,88303.0,0.5491126]
[1742827772630,0.19906,88307.0,88303.0,0.43588]
[1742827773023,0.00896441,88306.0,88303.0,0.43588]
[1742827773230,0.00972441,88306.0,88303.0,0.43588]
[1742827773429,0.00972441,88306.0,88303.0,0.5491125]
[1742827773724,0.00972441,88306.0,88303.0,0.43588]
[1742827773932,0.00076,88306.0,88303.0,0.43588]
[1742827775037,0.00176,88306.0,88303.0,0.43588]
[1742827775424,0.00176,88306.0,88305.0,0.1132302]
[1742827775623,0.0004,88312.0,88308.0,0.0566129]
[1742827775827,0.0004,88312.0,88311.0,0.1132225]
[1742827776029,0.0004,88312.0,88311.0,0.3632225]
[1742827776332,0.00108,88312.0,88311.0,0.3639025]
[1742827776525,0.16956051,88318.0,88317.0,0.1132148]
[1742827776724,0.16956051,88318.0,88317.0,0.3850948]
[1742827777132,0.16956051,88318.0,88317.0,0.27188]
[1742827777329,0.16956051,88318.0,88317.0,0.3850948]
[1742827777534,0.16956051,88318.0,88317.0,0.7870948]
[1742827778034,0.16956051,88318.0,88317.0,0.68977155]
[1742827778230,0.16956051,88318.0,88317.0,0.80298635]
[1742827779126,0.00016989,88326.0,88318.0,0.1132129]
[1742827779339,0.00016989,88326.0,88319.0,0.1132121]
[1742827779534,0.00016989,88326.0,88320.0,0.1132106]
[1742827779731,0.00889279,88325.0,88320.0,0.04]
[1742827780233,0.00889279,88324.0,88321.0,0.4031]
[1742827780432,0.00016989,88326.0,88321.0,0.4531]
[1742827781330,0.0011299,88326.0,88321.0,0.45406]
[1742827781921,0.0041299,88326.0,88321.0,0.45406]
[1742827782125,0.00887171,88325.0,88321.0,0.45406]
[1742827782420,0.00979171,88325.0,88321.0,0.45406]
[1742827782625,0.00887171,88324.0,88321.0,0.45406]
[1742827782826,0.1132084,88322.0,88321.0,0.45406]
[1742827783027,0.47488841,88322.0,88321.0,0.05096]
[1742827783235,0.47488841,88322.0,88321.0,0.05]
[1742827783434,0.87506012,88322.0,88321.0,0.05]
[1742827783634,0.98828091,88322.0,88321.0,0.05]
[1742827783827,0.98828091,88322.0,88321.0,0.03]
[1742827784230,0.98828091,88322.0,88321.0,0.03088]
[1742827785030,0.98928091,88322.0,88321.0,0.03088]
[1742827785435,0.99128091,88322.0,88321.0,0.03088]
[1742827785831,0.1132187,88314.0,88313.0,0.00016989]
[1742827786036,0.4746587,88314.0,88313.0,0.02016989]
[1742827786242,0.8759587,88314.0,88313.0,0.02016989]
[1742827786430,0.98918141,88314.0,88313.0,0.02016989]
[1742827787034,0.99805312,88314.0,88313.0,0.02016989]
[1742827787431,0.99805312,88314.0,88313.0,0.02116989]
[1742827788541,0.1132354,88301.0,88300.0,0.4047]
[1742827788741,0.4746754,88301.0,88300.0,0.44534]
[1742827789035,0.76614,88301.0,88300.0,0.44534]
[1742827790537,0.99262504,88301.0,88300.0,0.04064]
[1742827790839,0.99262504,88301.0,88300.0,0.04]
[1742827791031,1.00160505,88301.0,88300.0,0.0583636]
[1742827791233,1.00160505,88301.0,88300.0,0.0577236]
[1742827792145,0.0566194,88299.0,88286.0,0.04]
[1742827792349,0.474052,88288.0,88287.0,0.05045307]
[1742827792539,0.474692,88288.0,88287.0,0.03045307]
[1742827792847,0.59693832,88288.0,88287.0,0.03045307]
[1742827793145,0.59693832,88288.0,88287.0,0.03109307]
[1742827793334,0.98873832,88288.0,88287.0,0.03045307]
[1742827795043,0.98873832,88288.0,88287.0,0.03117307]
[1742827795233,0.98873832,88288.0,88287.0,0.03817307]
[1742827795643,0.866492,88288.0,88287.0,0.24697307]
[1742827797149,0.866492,88288.0,88287.0,0.25697307]
[1742827800248,0.36144,88288.0,88287.0,0.25697307]
[1742827800644,0.474692,88288.0,88287.0,0.45527307]
[1742827801050,0.871892,88288.0,88287.0,0.45527307]
[1742827803254,0.75864,88288.0,88287.0,0.45527307]
[1742827804153,0.56934,88288.0,88287.0,0.45527307]
[1742827804541,0.56934,88288.0,88287.0,0.56852637]
[1742827804542,0.36144,88288.0,88287.0,0.56852637]
[1742827806355,0.36144,88288.0,88287.0,0.45527307]
[1742827806542,0.474692,88288.0,88287.0,0.25697307]
[1742827806960,0.866792,88288.0,88287.0,0.25697307]
[1742827807456,0.98005831,88288.0,88287.0,0.03817307]
[1742827807651,0.99593149,88288.0,88287.0,0.03745307]
[1742827808051,0.98005831,88288.0,88287.0,0.03745307]
[1742827813256,0.98005831,88288.0,88287.0,1e-08]
[1742827814363,1.13005831,88288.0,88287.0,1e-08]
[1742827814562,1.53835831,88288.0,88287.0,1e-08]
[1742827814859,0.1132931,88256.0,88255.0,0.00045323]
[1742827815065,0.8355331,88256.0,88255.0,0.14045323]
[1742827815257,0.8355331,88256.0,88255.0,0.15529931]
[1742827815452,0.72224,88256.0,88255.0,0.14965084]
[1742827815759,1.33169941,88256.0,88255.0,0.14901084]
[1742827815962,1.33169941,88256.0,88255.0,0.14965084]
[1742827816363,1.33169941,88256.0,88255.0,0.15265084]
[1742827816754,1.33169941,88256.0,88255.0,0.12409323]
[1742827817158,1.33169941,88256.0,88255.0,0.13251718]
[1742827818262,1.33169941,88256.0,88255.0,0.33971718]
[1742827818961,0.72224,88256.0,88255.0,0.46001158]
[1742827819165,0.72224,88256.0,88255.0,0.66811158]
[1742827819350,0.8355331,88256.0,88255.0,0.66811158]
[1742827819549,0.72224,88256.0,88255.0,0.66811158]
[1742827820163,0.8355331,88256.0,88255.0,0.55481718]
[1742827820358,0.8355331,88256.0,88255.0,0.35071718]
[1742827821064,1.2300331,88256.0,88255.0,0.35171718]
[1742827822361,1.2300331,88256.0,88255.0,0.34971718]
[1742827822662,1.2300331,88256.0,88255.0,0.35171718]
[1742827822868,1.2300331,88256.0,88255.0,0.35071718]
[1742827823161,1.2300331,88256.0,88255.0,0.34971718]
[1742827823351,1.34334048,88256.0,88255.0,0.34971718]
[1742827823553,1.34334048,88256.0,88255.0,0.14251718]
[1742827823757,1.34334048,88256.0,88255.0,0.14051718]
[1742827823955,1.34334048,88256.0,88255.0,0.12509323]
[1742827824164,1.34334048,88256.0,88255.0,0.12445323]
[1742827824567,1.35842779,88256.0,88255.0,0.12445323]
[1742827824766,1.35842779,88256.0,88253.0,0.01529494]
[1742827824767,0.1132957,88254.0,88253.0,0.01529494]
[1742827824962,0.11389571,88254.0,88253.0,0.07]
[1742827825552,0.22720309,88254.0,88253.0,0.07]
[1742827826662,0.22720309,88254.0,88253.0,0.071]
[1742827826961,0.22720309,88254.0,88253.0,0.08830829]
[1742827827167,0.22720309,88254.0,88253.0,0.08730829]
[1742827827761,0.22720309,88254.0,88253.0,0.08794829]
[1742827827959,0.22720309,88254.0,88253.0,0.08730829]
[1742827828471,0.22720309,88254.0,88253.0,0.08794829]
[1742827828968,0.11389571,88254.0,88253.0,0.08794829]
[1742827831170,0.50969571,88254.0,88253.0,0.08794829]
[1742827831370,0.62300566,88254.0,88253.0,0.09594829]
[1742827832072,0.62300566,88254.0,88253.0,0.08594829]
[1742827832271,0.62300566,88254.0,88253.0,0.08694829]
[1742827832872,0.62300566,88254.0,88253.0,0.08594829]
[1742827835975,0.1133008,88250.0,88248.0,0.1953]
[1742827836178,0.4901021,88249.0,88248.0,0.2953]
[1742827836477,0.4908221,88249.0,88248.0,0.2859]
[1742827836668,0.60413205,88249.0,88248.0,0.2859]
[1742827837070,0.49082995,88249.0,88248.0,0.2859]
[1742827837275,0.00072,88249.0,88248.0,0.4092034]
[1742827837472,0.00072,88249.0,88248.0,0.7937034]
[1742827837773,0.1140221,88249.0,88248.0,0.7937034]
[1742827838079,0.1140221,88249.0,88248.0,0.6804]
[1742827838268,0.22733847,88249.0,88248.0,0.6804]
[1742827838464,0.62283847,88249.0,88248.0,0.6804]
[1742827839268,0.62283847,88249.0,88248.0,0.6814]
[1742827839873,0.62283847,88249.0,88248.0,0.4924]
[1742827840066,0.62283847,88249.0,88248.0,0.4824]
[1742827840678,0.72426026,88249.0,88248.0,0.4824]
[1742827841069,0.1133098,88243.0,88242.0,0.00867529]
[1742827841275,0.47498981,88243.0,88242.0,0.18088]
[1742827841482,0.66018981,88243.0,88242.0,0.18943137]
[1742827841775,0.77350618,88243.0,88242.0,0.18943137]
[1742827841978,0.77350618,88243.0,88235.0,0.12168]
[1742827841979,0.66019638,88243.0,88228.0,0.23]
[1742827842179,0.66019638,88243.0,88228.0,0.2306]
[1742827842180,0.4741278,88229.0,88228.0,0.2306]
[1742827842377,0.47536781,88229.0,88228.0,0.2306]
[1742827842572,0.67806781,88229.0,88228.0,0.2306]
[1742827842767,0.67806781,88229.0,88228.0,0.1106]
[1742827842971,0.79140987,88229.0,88228.0,0.1106]
[1742827843376,0.97860987,88229.0,88228.0,0.1106]
[1742827843577,0.1133342,88224.0,88216.0,0.3881]
[1742827843883,0.1133393,88220.0,88213.0,0.33638264]
[1742827844068,0.1144993,88220.0,88219.0,0.29993071]
[1742827844381,0.1144993,88220.0,88219.0,0.26993071]
[1742827844581,0.7069993,88220.0,88219.0,0.26993071]
[1742827844972,0.82034136,88220.0,88219.0,0.22787109]
[1742827845171,0.82034136,88220.0,88213.0,0.33638264]
[1742827845172,0.113347,88214.0,88213.0,0.33638264]
[1742827845380,0.475507,88214.0,88213.0,0.33698264]
[1742827845582,0.475507,88214.0,88213.0,0.0006]
[1742827845769,0.1133522,88210.0,88209.0,0.1962]
[1742827845968,0.59723221,88210.0,88209.0,0.1962]
[1742827846577,0.71059354,88210.0,88209.0,0.1962]
[1742827847578,0.60435759,88210.0,88209.0,0.1962]
[1742827847782,0.58891354,88210.0,88209.0,0.2062]
[1742827847985,0.58891354,88210.0,88209.0,0.2068]
[1742827848283,0.58891354,88210.0,88209.0,0.3201535]
[1742827848783,0.58891354,88210.0,88209.0,0.3301535]
[1742827848985,0.58891354,88210.0,88209.0,0.2168]
[1742827849184,0.58891354,88210.0,88209.0,0.3301535]
[1742827849582,0.47556134,88210.0,88209.0,0.3301535]
[1742827849781,0.36220001,88210.0,88209.0,0.4518335]
[1742827849990,0.00140001,88210.0,88209.0,0.6498335]
[1742827850285,0.3608,88214.0,88213.0,0.1133483]
[1742827850481,0.36172,88214.0,88213.0,0.1639883]
[1742827851181,0.36172,88214.0,88213.0,0.05064]
[1742827851382,0.475067,88214.0,88213.0,0.1639883]
[1742827851777,0.475067,88214.0,88213.0,0.05064]
[1742827851978,0.675267,88214.0,88213.0,0.05064]
[1742827852485,0.475067,88214.0,88213.0,0.05064]
[1742827853278,0.664767,88214.0,88213.0,0.05064]
[1742827853479,0.664767,88214.0,88213.0,0.17232]
[1742827854186,0.67361976,88214.0,88213.0,0.17232]
[1742827854986,0.664767,88214.0,88213.0,0.17232]
[1742827855186,0.664767,88214.0,88213.0,0.05064]
[1742827855387,0.664767,88214.0,88213.0,0.17232]
[1742827855586,0.664767,88214.0,88213.0,0.05064]
[1742827856287,0.664767,88214.0,88213.0,0.44394]
[1742827857382,0.664767,88214.0,88213.0,0.05064]
[1742827857587,1.13892833,88214.0,88213.0,0.03]
[1742827858292,1.15441248,88214.0,88213.0,0.03]
[1742827859087,0.1133547,88208.0,88207.0,0.00045348]
[1742827859491,0.11431471,88208.0,88207.0,0.00045348]
[1742827859691,0.2355994,88208.0,88207.0,0.00045348]
[1742827859891,0.4329994,88208.0,88207.0,0.00045348]
[1742827862293,0.4329994,88208.0,88207.0,8e-08]
[1742827862589,0.6162994,88208.0,88207.0,8e-08]
[1742827862786,0.7662994,88208.0,88207.0,8e-08]
[1742827862986,0.1133637,88201.0,88200.0,0.01513368]
[1742827863187,0.1133753,88192.0,88191.0,0.00045356]
[1742827863389,0.5958153,88192.0,88191.0,0.00045356]
[1742827863582,0.60469867,88192.0,88191.0,0.00045356]
[1742827863793,0.71806771,88192.0,88191.0,0.00045356]
[1742827864491,0.71898771,88192.0,88191.0,0.00045356]
[1742827865185,0.72740789,88192.0,88191.0,0.00045356]
[1742827865791,0.74228724,88192.0,88191.0,0.00045356]
[1742827866389,0.94238724,88192.0,88191.0,0.00045356]
[1742827867282,0.93396706,88192.0,88191.0,0.00045356]
[1742827867687,0.91908771,88192.0,88191.0,0.00045356]
[1742827868197,0.78856434,88192.0,88191.0,0.00045356]
[1742827868393,0.84367984,88192.0,88191.0,0.00101294]
[1742827868895,0.84367984,88192.0,88191.0,0.38891294]
[1742827870587,0.78856434,88192.0,88191.0,0.38891294]
[1742827871092,0.7974345,88192.0,88191.0,0.38891294]
[1742827872493,0.9190745,88192.0,88191.0,0.00101294]
[1742827872698,0.9190745,88192.0,88191.0,1.294e-05]
[1742827873101,1.1021745,88192.0,88191.0,1.294e-05]
[1742827876804,1.2521745,88192.0,88191.0,1.294e-05]
[1742827877193,0.1133959,88176.0,88168.0,0.3927]
[1742827877401,0.8359159,88176.0,88175.0,0.00137364]
[1742827877802,1.23578606,88176.0,88175.0,0.00045364]
[1742827878002,1.15387567,88176.0,88175.0,0.00045364]
[1742827878201,1.15387567,88176.0,88175.0,0.00105364]
[1742827879203,1.15487567,88176.0,88175.0,0.00105364]
[1742827879503,1.15487567,88176.0,88175.0,0.52515084]
[1742827879504,0.84577977,88176.0,88175.0,0.52515084]
[1742827880007,0.84578606,88176.0,88175.0,0.41175364]
[1742827880203,0.95919624,88176.0,88175.0,0.41175364]
[1742827880404,1.35109624,88176.0,88175.0,0.41175364]
[1742827880603,1.15569624,88176.0,88175.0,0.41175364]
[1742827880802,0.95919624,88176.0,88175.0,0.41175364]
[1742827880999,0.73239016,88176.0,88175.0,0.52515084]
[1742827881204,0.73139016,88176.0,88175.0,0.52515084]
[1742827881408,0.84478606,88176.0,88175.0,0.52515084]
[1742827881708,0.84478606,88176.0,88175.0,0.41175364]
[1742827882007,0.94932608,88176.0,88175.0,0.41175364]
[1742827882206,1.34122608,88176.0,88175.0,0.41175364]
[1742827882395,1.34122608,88176.0,88175.0,0.41115364]
[1742827882599,1.46282608,88176.0,88175.0,0.40115364]
[1742827883599,1.46282608,88176.0,88175.0,0.00045364]
[1742827884722,1.47514927,88176.0,88175.0,0.00045364]
[1742827885716,1.47514927,88176.0,88175.0,4e-08]
[1742827886314,1.62514927,88176.0,88175.0,4e-08]
[1742827886514,1.63402737,88176.0,88175.0,4e-08]
[1742827886822,1.48402737,88176.0,88175.0,4e-08]
[1742827887021,1.47514927,88176.0,88175.0,4e-08]
[1742827887719,1.48602701,88176.0,88175.0,4e-08]
[1742827887920,1.63602701,88176.0,88175.0,4e-08]
[1742827888124,1.63702701,88176.0,88175.0,4e-08]
[1742827888320,1.48702701,88176.0,88175.0,4e-08]
[1742827888624,1.47814927,88176.0,88175.0,4e-08]
[1742827889018,1.53328338,88176.0,88175.0,4e-08]
[1742827892219,1.41168338,88176.0,88175.0,4e-08]
[1742827892427,1.53328338,88176.0,88175.0,4e-08]
[1742827893623,0.1134152,88161.0,88160.0,0.1841732]
[1742827893825,0.7216,88161.0,88160.0,0.3075897]
[1742827894027,0.72252,88161.0,88160.0,0.3081897]
[1742827894220,0.72252,88161.0,88160.0,0.4997897]
[1742827894725,0.8359352,88161.0,88160.0,0.4997897]
[1742827895223,0.8359352,88161.0,88160.0,0.3863732]
[1742827895427,0.58856468,88161.0,88160.0,0.3763732]
[1742827895728,0.00092,88161.0,88160.0,0.4897897]
[1742827896029,0.1216,88171.0,88168.0,0.1134062]
[1742827896217,0.00113011,88169.0,88168.0,0.00064]
[1742827896424,0.11342948,88168.0,88163.0,0.258006]
[1742827896623,0.47421,88165.0,88164.0,0.1981]
[1742827896823,0.47421,88165.0,88164.0,0.41451853]
[1742827897024,0.47513,88165.0,88164.0,0.41515853]
[1742827897330,0.47513,88165.0,88164.0,0.42515853]
[1742827898220,0.36172,88165.0,88164.0,0.53856983]
[1742827898831,0.36172,88165.0,88164.0,0.66016983]
[1742827899733,0.1133821,88187.0,88174.0,0.1133985]
[1742827899734,0.20323983,88175.0,88174.0,0.1133985]
[1742827899929,0.59528095,88186.0,88177.0,0.0566972]
[1742827900128,0.22681183,88183.0,88178.0,0.3839]
[1742827900436,0.00064,88183.0,88178.0,0.4345]
[1742827900730,0.11342433,88182.0,88178.0,0.4345]
[1742827900930,0.11422433,88182.0,88178.0,0.4345]
[1742827901137,0.0008,88182.0,88178.0,0.5478926]
[1742827901336,0.0008,88182.0,88178.0,0.4345]
[1742827901530,0.17009865,88181.0,88178.0,0.4345]
[1742827901729,0.1133997,88173.0,88172.0,0.0001701]
[1742827901935,0.4748397,88173.0,88172.0,0.2001701]
[1742827902125,0.4748397,88173.0,88172.0,0.2007701]
[1742827902330,0.4748397,88173.0,88172.0,0.2001701]
[1742827902526,0.58824474,88173.0,88172.0,0.2001701]
[1742827903232,0.77394474,88173.0,88172.0,0.1901701]
[1742827903732,0.97354474,88173.0,88172.0,0.1901701]
[1742827904737,0.97454474,88173.0,88172.0,0.1901701]
[1742827905634,0.98666418,88173.0,88172.0,0.1901701]
[1742827905833,1.10822418,88173.0,88172.0,0.0001701]
[1742827907437,1.1633552,88173.0,88172.0,0.0001701]
[1742827911337,0.1134113,88164.0,88163.0,0.192]
[1742827911537,0.1140513,88164.0,88163.0,0.2026]
[1742827911935,0.4805513,88164.0,88163.0,0.2026]
[1742827912136,0.0567075,88162.0,88149.0,0.03]
[1742827912440,0.1134229,88155.0,88154.0,0.1987]
[1742827912633,0.12605741,88155.0,88154.0,0.2493]
[1742827913042,0.12605741,88155.0,88154.0,0.0506]
[1742827913240,0.68475741,88155.0,88154.0,0.05]
[1742827913438,0.1134332,88147.0,88146.0,0.3828]
[1742827913738,0.1143132,88147.0,88146.0,0.53348]
[1742827914133,0.2277504,88147.0,88146.0,0.53348]
[1742827914329,0.5993504,88147.0,88146.0,0.53348]
[1742827915332,0.4137504,88147.0,88146.0,0.53348]
[1742827915750,0.46888142,88147.0,88146.0,0.53348]
[1742827915943,0.46888142,88147.0,88146.0,0.52348]
[1742827916245,0.82968142,88147.0,88146.0,0.52348]
[1742827916747,0.82968142,88147.0,88146.0,0.32748]
[1742827916949,0.83063703,88147.0,88146.0,0.32748]
[1742827917351,1.02103703,88147.0,88146.0,0.32748]
[1742827918434,1.02103703,88147.0,88146.0,0.14068]
[1742827918641,0.1134461,88137.0,88136.0,0.3608]
[1742827918841,0.1142461,88137.0,88136.0,0.44148]
[1742827919348,0.42690647,88137.0,88136.0,0.44148]
[1742827919548,0.78770647,88137.0,88136.0,0.08068]
[1742827919845,0.78770647,88137.0,88112.0,0.3608]
[1742827919846,0.1134564,88129.0,88128.0,0.1858]
[1742827920039,0.1143364,88129.0,88128.0,0.5349]
[1742827920240,0.3065364,88129.0,88128.0,0.6583577]
[1742827920444,0.41999677,88129.0,88128.0,0.6583577]
[1742827920651,0.41999677,88129.0,88128.0,0.5449]
[1742827920849,0.41999677,88129.0,88128.0,0.6583577]
[1742827921147,0.41999677,88129.0,88128.0,0.5449]
[1742827921337,0.30754037,88129.0,88128.0,0.6583576]
[1742827921542,0.42099677,88129.0,88128.0,0.5449]
[1742827921843,0.11534037,88129.0,88128.0,0.6583576]
[1742827922048,0.22979677,88129.0,88128.0,0.5449]
[1742827922654,0.11634037,88129.0,88128.0,0.5449]
[1742827922847,0.22979677,88129.0,88128.0,0.5449]
[1742827923156,0.41129677,88129.0,88128.0,0.5449]
[1742827923843,0.60869677,88129.0,88128.0,0.5449]
[1742827924956,0.71038048,88129.0,88128.0,0.5449]
[1742827926255,0.59692408,88129.0,88128.0,0.5449]
[1742827926456,0.39952408,88129.0,88128.0,0.5449]
[1742827926650,0.51298048,88129.0,88128.0,0.5449]
[1742827927355,0.70418048,88129.0,88128.0,0.5449]
[1742827927755,0.70418048,88129.0,88128.0,0.1706]
[1742827927961,0.61466272,88129.0,88128.0,0.1606]
[1742827928164,0.61466272,88129.0,88128.0,0.16]
[1742827928458,0.97546272,88129.0,88128.0,0.16]
[1742827928651,0.97546272,88129.0,88088.0,0.3608]
[1742827928652,0.1134782,88112.0,88088.0,0.3608]
[1742827928846,0.1143182,88112.0,88111.0,0.35045397]
[1742827929049,0.4750782,88112.0,88111.0,0.19105397]
[1742827929250,0.8700782,88112.0,88111.0,0.19105397]
[1742827929449,0.1134886,88104.0,88098.0,0.20273149]
[1742827929658,0.1134924,88101.0,88098.0,0.20273149]
[1742827929868,0.12672275,88101.0,88100.0,0.1606]
[1742827930663,0.24022948,88101.0,88100.0,0.1606]
[1742827931564,0.36174948,88101.0,88100.0,0.1606]
[1742827932355,0.74094948,88101.0,88100.0,0.1606]
[1742827933560,0.87652776,88101.0,88100.0,0.1606]
[1742827933767,0.1135079,88089.0,88088.0,0.3608]
[1742827933953,0.2360279,88089.0,88088.0,0.4614]
[1742827934456,0.34955009,88089.0,88088.0,0.4614]